[Event "Aktobe Open 2022"]
[Site "Aktobe"]
[Date "2022.06.18"]
[Round "7.9"]
[White "Sadubayev, Airat"]
[Black "Afanasiev, Nikita"]
[Result "1/2-1/2"]
[ECO "B04"]
[WhiteElo "2317"]
[BlackElo "2567"]
[Annotator "TA"]
[PlyCount "75"]
[EventDate "2022.06.14"]
[EventType "swiss"]
[EventCountry "KAZ"]
[SourceTitle "playchess.com"]
[Source "ChessBase"]
[SourceQuality "1"]
[TimeControl "5400+30"]

{[%evp 12,75,45,33,40,0,16,16,14,14,5,0,0,18,21,13,16,0,0,0,0,0,0,-15,-5,0,0,-47,0,0,0,0,0,-14,0,0,0,0,7,0,7,7,7,7,7,7,8,4,8,6,19,2,4,8,5,2,1,1,5,0,0,0,104,105,83,0]} 1. e4 {[%cal Be2e4,Be4e5][%mdl 32]} Nf6 {[%cal Bg8f6,Bf6d5,Bd5b6][%mdl 32]} 2. e5 Nd5 3. d4 d6 4. c4 Nb6 5. exd6 exd6 6. h3 Nc6 7. Nf3 Bf5 {B04: Alekhine's Defence: 4 Nf3.} 8. Be2 Nb4 {[#] aiming for ...Nc2+.} 9. Na3 {[#] Prevents Nc2+.} c6 $146 {The position is equal.} ({Predecessor:} 9... a5 10. O-O Be7 11. Be3 O-O 12. Qd2 Re8 13. Rfe1 h6 14. d5 c6 15. Nd4 Bg6 16. dxc6 bxc6 {½-½ (23) Berezjuk,S (2406)-Teske,H (2536) Pardubice 2009}) 10. O-O Be7 11. Bd2 a5 {[%cal Ba7a5,Ba5b4][%mdl 32]} 12. Qb3 d5 13. c5 Nd7 14. Bxb4 axb4 15. Nc2 ({Don't play} 15. Qxb4 b6 $15) 15... Bxc2 16. Qxc2 O-O 17. Bd3 g6 18. a3 bxa3 19. bxa3 (19. Rxa3 $11 Bf6 20. Rfa1 Rxa3 21. Rxa3) 19... Bf6 (19... b6 $1 $15 20. cxb6 Qxb6) 20. Rfb1 $11 Ra7 21. Rb4 Qc7 22. a4 Re8 23. g3 Nf8 24. h4 Qd7 25. Rab1 {[%cal Ba1b1,Bb1b2,Bb2b7][%mdl 32]} Re7 26. Bf1 (26. Qc1 {is more complex.} Kg7 27. Qd2 h5 28. Kg2) 26... h5 27. Kh2 Qe8 28. R1b2 Bg7 29. Bh3 Nh7 30. a5 Bf6 (30... Rxa5 {looks sharper.} 31. Rxb7 Rxb7 32. Rxb7 Qe4) 31. a6 Rxa6 32. Rxb7 Rxb7 33. Rxb7 Nf8 {Inhibits Bd7.} 34. Qb2 Ra8 {Against Rb8} 35. Qd2 Ra3 36. Qf4 Rxf3 37. Qxf3 $16 Bxd4 {[%emt 0:18:30]} 38. g4 {[%emt 0:21:33] Weighted Error Value: White=0.06 (flawless) /Black=0.08 (flawless)} (38. Qf4 $16 Bxc5 39. Kg1) 1/2-1/2

[Event "Aktobe Open 2022"]
[Site "Aktobe"]
[Date "2022.06.19"]
[Round "8.1"]
[White "Ponkratov, Pavel"]
[Black "Vakhidov, Jakhongir"]
[Result "1-0"]
[ECO "C70"]
[WhiteElo "2624"]
[BlackElo "2552"]
[Annotator "TA"]
[PlyCount "119"]
[EventDate "2022.06.14"]
[EventType "swiss"]
[EventCountry "KAZ"]
[SourceTitle "playchess.com"]
[Source "ChessBase"]
[SourceQuality "1"]
[TimeControl "5400+30"]

{[%evp 9,119,0,25,7,51,50,99,72,81,89,87,83,77,81,78,79,58,52,60,18,10,20,4,0,0,3,20,0,0,0,0,-5,129,120,120,120,123,129,108,127,160,79,64,77,319,191,187,190,218,204,254,246,245,252,241,235,277,210,210,210,210,210,239,232,222,210,204,191,233,231,245,239,248,246,255,251,248,249,241,248,231,212,254,252,271,266,279,278,270,266,314,318,301,272,418,438,492,463,458,370,450,453,688,616,550,568,765,766,1446,1425,1135,1037]} 1. e4 {[%emt 0:00:03]} e5 {[%emt 0:00:09]} 2. Nf3 {[%emt 0:00:08]} Nc6 {[%emt 0:00:05]} 3. Bb5 {[%emt 0:00:30][%cal Bf1b5,Bb5a4,Ba4b3][%mdl 32]} a6 {[%emt 0:00:07]} 4. Ba4 {[%emt 0:00:04]} Nge7 {[%emt 0:00:06]} 5. Bb3 {[%emt 0:00:53]} Ng6 {[%emt 0:03:33]} 6. h4 {[%emt 0:01:13][%cal Bh2h4,Bh4h5][%mdl 32] [#] C70: Ruy Lopez: 3...a6 4 Ba4, Norwegian and Delayed Schliemann.} Na5 $146 {[%emt 0:28:06]} (6... Be7 $5 {[%cal Rd7d6]}) ({Predecessor:} 6... Be7 7. d3 h6 8. h5 Nh4 9. Nxh4 Bxh4 10. g3 Bf6 11. Be3 Na5 12. Nc3 d6 {½-½ (41) Movsesian,S (2696)-Mamedyarov,S (2759) Rhodes 2013}) 7. h5 {[%emt 0:32:35]} Nf4 {[%emt 0:00:31]} (7... Ne7 $14) 8. d4 $1 $16 {[%emt 0:00:04][%cal Ob3f7] White is better.} Nxb3 {[%emt 0:00:12]} 9. axb3 {[%emt 0:00:03]} Nxg2+ {[%emt 0:02:30]} 10. Kf1 {[%emt 0:00:05]} Nf4 {[%emt 0:00:04]} 11. Nxe5 {[%emt 0:00:06]} Ne6 {[%emt 0:00:07]} 12. d5 {[%emt 0:00:07]} (12. Qf3 f6 13. Nc4 Nxd4 $15) 12... Nc5 {[%emt 0:01:31]} 13. Nc3 {[%emt 0:00:14]} ({Don't play} 13. Qf3 Qe7 14. Nc4 Qxe4 15. Qxe4+ Nxe4 $15) 13... d6 {[%emt 0:01:59]} 14. Nd3 {[%emt 0:00:10]} Nxd3 {[%emt 0:02:30]} 15. Qxd3 {[%emt 0:00:09]} Be7 {[%emt 0:00:44][%cal Of7f5]} 16. Rg1 {[%emt 0:01:20][%cal Bh1g1,Bg1g7,Bg7h7][%mdl 32]} Bf6 {[%emt 0:01:02]} 17. Be3 {[%emt 0:01:36]} Bd7 {[%emt 0:05:59]} 18. Bd4 {[%emt 0:01:39]} Bxd4 {[%emt 0:03:11]} 19. Qxd4 {[%emt 0:00:05]} Qh4 {[%emt 0:00:05]} 20. Rxg7 {[%emt 0:10:00]} Qxh5 {[%emt 0:04:31] [#]} (20... Ke7 $11 {keeps the balance.}) 21. Qf6 $1 {[%emt 0:01:20] Threatens to win with Rg5.} Rf8 {[%emt 0:00:33]} 22. Re1 {[%emt 0:26:11] 0x0.0022fbad9e72dp-1022s more active pieces. The black rooks are badly placed.} Qe5 {[%emt 0:22:11]} 23. Qxe5+ $40 {[%emt 0:00:06][%mdl 128] White attacks with force.} dxe5 {[%emt 0:00:01]} 24. Rxh7 {[%emt 0:03:16]} f5 {[%emt 0:02:25] [#]} 25. exf5 {[%emt 0:01:19]} (25. Ke2 $142 $1) 25... O-O-O {[%emt 0:00:15]} 26. Rxe5 {[%emt 0:00:10] Hoping for Rh5.} c6 $2 {[%emt 0:14:23] Loses the game.} (26... Bxf5 $16 27. Rg7 Rde8 28. Rxe8+ Rxe8) 27. Na4 {[%emt 0:01:36]} (27. dxc6 $142 Bxc6 28. Ke2) 27... Bxf5 $18 {[%emt 0:00:25]} 28. Rg7 {[%emt 0:00:49]} Bh3+ {[%emt 0:00:24]} 29. Kg1 {[%emt 0:01:11]} Rg8 {[%emt 0:00:04]} 30. Nb6+ {[%emt 0:00:05]} Kb8 {[%emt 0:00:05]} 31. Rxg8 {[%emt 0:00:13]} Rxg8+ {[%emt 0:00:03][%mdl 4096] Endgame KRB-KRN} 32. Kh2 {[%emt 0:00:03]} Rh8 {[%emt 0:00:14]} 33. Kg3 {[%emt 0:01:31] aiming for d6.} Kc7 {[%emt 0:00:55]} 34. Nc4 {[%emt 0:00:05]} cxd5 {[%emt 0:00:25]} 35. Rxd5 {[%emt 0:00:04]} Bd7 {[%emt 0:00:41]} 36. Rc5+ {[%emt 0:00:13]} Kd8 {[%emt 0:01:39]} 37. Rg5 {[%emt 0:01:42]} Rh1 {[%emt 0:00:27]} 38. Ne5 {[%emt 0:01:07]} Bc8 {[%emt 0:01:15]} 39. Nd3 {[%emt 0:01:22]} Ke7 {[%emt 0:00:16]} 40. Kf4 {[%emt 0:00:24]} Kf6 {[%emt 0:00:33]} 41. Rg8 {[%emt 0:00:44]} Bd7 {[%emt 0:01:01]} 42. Rf8+ {[%emt 0:00:33]} Ke7 {[%emt 0:00:05]} 43. Rb8 {[%emt 0:00:05]} Bc6 {[%emt 0:00:40]} 44. Ke3 {[%emt 0:00:16]} Rh3+ {[%emt 0:00:36]} 45. Kd2 {[%emt 0:00:14]} Rh2 {[%emt 0:01:46]} 46. b4 {[%emt 0:00:25]} Rh5 {[%emt 0:01:06]} 47. b3 {[%emt 0:01:04]} Rh2 {[%emt 0:00:54]} 48. Ke3 {[%emt 0:00:24]} Rh3+ {[%emt 0:00:18]} 49. Kd4 {[%emt 0:00:05]} Kd6 {[%emt 0:01:01]} 50. Rg8 {[%emt 0:00:42]} Rh4+ {[%emt 0:00:19]} 51. f4 {[%emt 0:00:09] Rg6+ is the strong threat.} Rh2 {[%emt 0:00:17]} (51... Ke6 $142 52. Rb8 Rh2 53. Nc5+ Kd6) 52. c4 {[%emt 0:00:36]} Re2 {[%emt 0:00:59]} 53. Rg6+ {[%emt 0:00:07]} Ke7 {[%emt 0:00:41]} 54. Ne5 {[%emt 0:02:04]} Be4 {[%emt 0:00:16]} 55. Rh6 {[%emt 0:01:07] White is clearly winning.} Kd8 {[%emt 0:00:59]} (55... Re1 $142 56. Nd3 Bxd3) 56. Nf7+ {[%emt 0:02:04]} Kd7 {[%emt 0:00:34]} 57. Nd6 {[%emt 0:00:42]} Bg2 {[%emt 0:02:33]} 58. Kc5 {[%emt 0:00:43]} Rb2 {[%emt 0:00:24]} 59. Rh7+ {[%emt 0:00:30]} Ke6 {[%emt 0:00:02]} 60. f5+ {[%emt 0:14:05] Weighted Error Value: White=0.11 (very precise) /Black=0.32} 1-0

[Event "Aktobe Open 2022"]
[Site "Aktobe"]
[Date "2022.06.19"]
[Round "8.2"]
[White "Nesterov, Arseniy"]
[Black "Agmanov, Zhandos"]
[Result "1/2-1/2"]
[ECO "E16"]
[WhiteElo "2569"]
[BlackElo "2420"]
[Annotator "TA"]
[PlyCount "70"]
[EventDate "2022.06.14"]
[EventType "swiss"]
[EventCountry "KAZ"]
[SourceTitle "playchess.com"]
[Source "ChessBase"]
[SourceQuality "1"]
[TimeControl "5400+30"]

{[%evp 14,70,12,0,13,-10,0,0,0,-10,0,0,0,0,6,0,17,22,15,18,21,29,31,22,45,47,43,45,50,31,31,31,31,32,34,26,33,27,27,14,14,13,12,7,14,0,11,11,11,12,15,0,0,14,14,0,0,0,0]} 1. d4 {[%emt 0:00:03]} e6 {[%emt 0:00:16]} 2. c4 {[%emt 0:00:06]} Nf6 {[%emt 0:00:28]} 3. g3 {[%emt 0:00:05]} d5 {[%emt 0:00:42]} 4. Bg2 {[%emt 0:00:06]} Bb4+ {[%emt 0:00:28]} 5. Nd2 {[%emt 0:00:08]} O-O {[%emt 0:00:55]} 6. Ngf3 {[%emt 0:00:22]} b6 {[%emt 0:01:03]} 7. O-O {[%emt 0:01:52]} Bb7 {[%emt 0:00:32]} 8. a3 {[%emt 0:05:33]} (8. Ne5 {keeps more tension.} a5 9. Qc2 c5 10. cxd5 exd5 11. Ndf3) 8... Be7 {[%emt 0:00:17] E16: Queen's Indian: 4 g3 Bb7 5 Bg2 Bb4+.} 9. b4 {[%emt 0:01:14]} Nbd7 {[%emt 0:08:14]} 10. c5 {[%emt 0:08:29]} a5 {[%emt 0:04:43]} 11. Qc2 {[%emt 0:06:25] Strongly threatening c6.} c6 {[%emt 0:02:04]} 12. Bb2 {[%emt 0:01:16]} axb4 {[%emt 0:15:33]} 13. axb4 {[%emt 0:00:05] [#]} Qc7 $146 {[%emt 0:00:11]} ({Predecessor:} 13... b5 14. Nb3 Qc7 15. Na5 Rfe8 16. Bc1 Bf8 17. Bf4 Qc8 18. Bh3 g6 19. Ne5 Nh5 20. Nxd7 Qxd7 {1-0 (41) Puszczewicz,K (2026)-Rossienik,W (1498) Wroclaw 2014}) 14. Nb3 {[%emt 0:11:54]} Rxa1 {[%emt 0:01:46]} 15. Rxa1 {[%emt 0:00:08]} Ra8 {[%emt 0:00:19]} 16. Rxa8+ {[%emt 0:01:58]} Bxa8 {[%emt 0:00:04]} 17. Bc3 {[%emt 0:01:06]} Qa7 {[%emt 0:01:58]} 18. cxb6 {[%emt 0:04:14]} Qa4 {[%emt 0:04:43]} 19. Qb2 {[%emt 0:01:38]} Nxb6 {[%emt 0:13:15]} 20. Nc5 {[%emt 0:01:07]} Qa7 {[%emt 0:00:08]} 21. Ne5 {[%emt 0:00:32]} Nfd7 {[%emt 0:01:09]} 22. Nexd7 {[%emt 0:04:01]} Nxd7 {[%emt 0:00:06]} 23. e3 {[%emt 0:00:18]} Nb6 {[%emt 0:12:00]} 24. Bf1 {[%emt 0:00:09]} Nc8 {[%emt 0:00:25]} 25. h4 {[%emt 0:01:00]} Nd6 {[%emt 0:00:22]} 26. h5 {[%emt 0:01:18]} Bb7 {[%emt 0:04:02] The position is equal.} 27. Bd3 {[%emt 0:02:20]} Bc8 {[%emt 0:00:31]} 28. Qc2 {[%emt 0:01:23]} h6 {[%emt 0:00:20]} 29. Kg2 {[%emt 0:08:39]} Qa3 {[%emt 0:02:03]} 30. Bd2 {[%emt 0:00:40]} Nc4 {[%emt 0:04:23]} 31. Bxc4 {[%emt 0:09:32]} dxc4 {[%emt 0:00:07]} 32. Qe4 {[%emt 0:06:16]} Bxc5 {[%emt 0:09:21]} 33. dxc5 {[%emt 0:13:51]} Bb7 {[%emt 0:02:20] [#] Hoping for ...c3.} 34. Qe5 {[%emt 0:07:36] Against c3} Qd3 {[%emt 0:00:40]} 35. Bc3 {[%emt 0:00:43][%csl Gc3][%cal Re5g7]} Qd5+ {[%emt 0:00:07] Weighted Error Value: White=0.05 (flawless) /Black=0.03 (flawless)} 1/2-1/2

[Event "Aktobe Open 2022"]
[Site "Aktobe"]
[Date "2022.06.19"]
[Round "8.3"]
[White "Rychagov, Andrey"]
[Black "Makhnev, Denis"]
[Result "1-0"]
[ECO "E95"]
[WhiteElo "2549"]
[BlackElo "2505"]
[Annotator "TA"]
[PlyCount "111"]
[EventDate "2022.06.14"]
[EventType "swiss"]
[EventCountry "KAZ"]
[SourceTitle "playchess.com"]
[Source "ChessBase"]
[SourceQuality "1"]
[TimeControl "5400+30"]

{[%evp 16,111,43,37,49,49,72,68,65,70,69,66,68,64,133,135,200,197,206,214,209,200,215,135,120,137,128,78,115,60,385,385,387,376,376,371,355,352,431,431,527,527,690,666,811,820,819,808,772,756,29986,29987,29984,29985,29990,547,543,535,510,518,512,495,461,472,435,431,431,270,464,465,478,510,504,491,706,693,767,808,686,740,780,795,771,770,693,466,810,785,1020,1069,1018,881,1011,1062,941,872,1351,1256]} 1. d4 {[%emt 0:00:04]} Nf6 {[%emt 0:00:07]} 2. c4 {[%emt 0:00:07]} g6 {[%emt 0:00:07]} 3. Nc3 {[%emt 0:01:23]} Bg7 {[%emt 0:00:06]} 4. e4 {[%emt 0:00:23]} d6 {[%emt 0:00:07]} 5. Nf3 {[%emt 0:00:22]} O-O {[%emt 0:00:11]} 6. Be2 {[%emt 0:00:04]} e5 {[%emt 0:00:08]} 7. O-O {[%emt 0:01:23]} h6 {[%emt 0:00:14]} 8. Re1 {[%emt 0:12:49]} Nbd7 {[%emt 0:18:11]} 9. Bf1 {[%emt 0:01:17]} exd4 {[%emt 0:01:23] 9...Re8 is a critical line. E95: King's Indian: Classical: 7...Nbd7 8 Re1.} 10. Nxd4 {[%emt 0:00:06]} Re8 {[%emt 0:00:04]} 11. f3 {[%emt 0:02:29] White is more active.} c6 {[%emt 0:09:11] White is slightly better.} 12. Be3 {[%emt 0:08:11] [#]} Ne5 $146 {[%emt 0:14:30]} ({Predecessor:} 12... Qc7 13. Qd2 Kh7 14. Rad1 Bf8 15. b3 Nc5 16. g3 a5 17. Bg2 Bd7 18. g4 Rad8 {1-0 (41) Weiss,C (2290)-Kranzl,P (2225) Linz 1996}) 13. Qd2 {[%emt 0:02:10]} g5 {[%emt 0:03:55]} 14. Rad1 {[%emt 0:02:02]} Qc7 {[%emt 0:06:18] [#]} (14... a6 $14) 15. h4 $1 $16 {[%emt 0:03:42]} gxh4 {[%emt 0:02:51]} (15... Nh7 $16 16. hxg5 hxg5) 16. Bxh6 $18 {[%emt 0:01:00]} Nh7 {[%emt 0:00:07]} 17. Bxg7 {[%emt 0:06:50]} Kxg7 {[%emt 0:00:07]} 18. f4 {[%emt 0:02:52][%cal Bf3f4,Bf4f5][%mdl 32]} Ng6 {[%emt 0:05:34]} 19. Qf2 {[%emt 0:15:08]} Nf6 {[%emt 0:11:30]} 20. f5 {[%emt 0:13:58]} Ng4 {[%emt 0:00:14]} 21. Qf3 {[%emt 0:00:26]} (21. Qd2 $142 {Black must now prevent Qg5.} d5 22. Nf3 (22. e5 Rxe5 23. Be2 Rxe2 $11) 22... Qb6+ 23. Qd4+ Qxd4+ 24. Rxd4 (24. Nxd4 N6e5 $16)) 21... N6e5 $16 {[%emt 0:00:31]} 22. Qf4 $36 {[%emt 0:01:11][%mdl 2048] White is more active.} f6 $2 {[%emt 0:02:07][%mdl 8192] Black cannot hold the game after this.} (22... Rg8 $1 $14) 23. Be2 $18 {[%emt 0:01:47]} Nh6 {[%emt 0:02:07][%cal Bg4h6,Bh6f7,Bf7g5][%mdl 32]} 24. Bh5 {[%emt 0:00:30]} ({Weaker is} 24. Qxh4 Rh8 $16) 24... Rh8 {[%emt 0:01:08]} 25. Qxh4 {[%emt 0:01:13]} Nhf7 {[%emt 0:03:28]} 26. Re3 {[%emt 0:02:32] Really sharp!} ({Stronger than} 26. Qg3+ Ng5 27. Nce2 Rxh5 $11) 26... Ng5 {[%emt 0:01:39]} 27. Rg3 {[%emt 0:01:16]} Kf8 {[%emt 0:01:40]} 28. Nce2 {[%emt 0:03:11]} ({Less strong is} 28. Rxg5 fxg5 29. Qxg5 Qe7 $16) 28... Qh7 {[%emt 0:11:33]} 29. Nf4 {[%emt 0:00:51] [#] Strongly threatening Rxg5.} Qh6 {[%emt 0:02:59]} 30. Nf3 {[%emt 0:04:15]} Ngxf3+ {[%emt 0:00:21]} 31. gxf3 {[%emt 0:00:04]} Ke7 {[%emt 0:00:07]} 32. c5 {[%emt 0:02:21]} dxc5 {[%emt 0:01:05]} 33. Ng6+ {[%emt 0:05:59]} Nxg6 {[%emt 0:00:11]} 34. Rxg6 {[%emt 0:00:02]} Qe3+ {[%emt 0:01:06]} 35. Kf1 {[%emt 0:00:11]} (35. Kg2 $142 Qe2+ 36. Kg3 Qe1+ 37. Rxe1 Kd8 38. Qxf6+ Kc7 39. Qxh8 a5 40. f6) 35... Qxf3+ {[%emt 0:00:15]} 36. Bxf3 {[%emt 0:00:04]} Rxh4 {[%emt 0:00:06]} 37. Rg8 {[%emt 0:01:03]} b6 {[%emt 0:02:12] And now ...Ba6+ would win.} 38. Kg2 {[%emt 0:00:25]} Rh7 {[%emt 0:00:22]} 39. Rdd8 {[%emt 0:01:42]} Rg7+ {[%emt 0:00:05]} 40. Rxg7+ {[%emt 0:00:06]} Kxd8 {[%emt 0:00:04][%mdl 4096] Endgame KRB-KRB} 41. Bh5 {[%emt 0:03:06]} Rb8 $2 {[%emt 0:01:24]} (41... a5 42. Rg8+ Ke7) 42. Rf7 {[%emt 0:00:12] White is clearly winning.} c4 {[%emt 0:00:23]} 43. Rxf6 {[%emt 0:00:12]} b5 {[%emt 0:00:27]} 44. Kf3 {[%emt 0:00:49]} Kc7 {[%emt 0:00:44]} (44... c5 $142 45. Rf8+ Kc7) 45. e5 {[%emt 0:00:17][%cal Be4e5,Be5e6][%mdl 32]} b4 {[%emt 0:00:27]} 46. Rf7+ {[%emt 0:00:09]} Kb6 {[%emt 0:00:06]} 47. e6 {[%emt 0:00:12]} c3 {[%emt 0:01:30]} 48. bxc3 {[%emt 0:00:04]} bxc3 {[%emt 0:00:03]} 49. Ke3 {[%emt 0:00:13] aiming for e7.} Kc5 {[%emt 0:01:01]} 50. Kd3 {[%emt 0:00:12] Threatens to win with e7.} Kb4 {[%emt 0:00:21]} (50... Kd6 $142 51. Rxa7 Rb7) 51. Rxa7 {[%emt 0:00:30]} Rb5 {[%emt 0:00:20]} 52. Bg4 {[%emt 0:01:32] Kc2 is the strong threat.} Rd5+ {[%emt 0:00:04]} 53. Kc2 {[%emt 0:00:03]} Rd2+ {[%emt 0:00:28]} 54. Kc1 {[%emt 0:00:04] Hoping for e7.} Rg2 {[%emt 0:00:04]} 55. Bd1 {[%emt 0:00:42]} Rg1 {[%emt 0:00:13]} 56. Ra8 {[%emt 0:00:36] Weighted Error Value: White=0.33/Black=0.56} 1-0

[Event "Aktobe Open 2022"]
[Site "Aktobe"]
[Date "2022.06.19"]
[Round "8.4"]
[White "Averin, Nikolay"]
[Black "Sivuk, Vitaly"]
[Result "0-1"]
[ECO "B53"]
[WhiteElo "2427"]
[BlackElo "2529"]
[Annotator "TA"]
[PlyCount "104"]
[EventDate "2022.06.14"]
[EventType "swiss"]
[EventCountry "KAZ"]
[SourceTitle "playchess.com"]
[Source "ChessBase"]
[SourceQuality "1"]
[TimeControl "5400+30"]

{[%evp 9,104,25,28,25,22,-1,47,44,38,34,43,33,48,38,48,35,52,73,53,47,46,22,38,31,22,23,23,20,16,14,33,10,21,12,22,0,39,16,35,31,54,0,31,-37,-29,-22,-42,-39,-50,-33,0,-58,-53,-100,61,-83,0,0,0,0,0,0,0,-7,0,0,0,-26,-37,-695,-689,-685,-693,-664,-649,-1117,-230,-1110,-1075,-5173,-5173,-5157,-5157,-29990,-29991,-29992,-29993,-29993,-29992,-29996,-1331,-1088,-1037,-5608,-993,-4802,-882]} 1. e4 {[%emt 0:00:02]} c5 {[%emt 0:00:11]} 2. Nf3 {[%emt 0:00:17]} d6 {[%emt 0:00:11]} 3. d4 {[%emt 0:00:16]} cxd4 {[%emt 0:00:14]} 4. Qxd4 {[%emt 0:00:58]} a6 {[%emt 0:00:23]} 5. Be2 {[%emt 0:01:41]} Nc6 {[%emt 0:00:15]} 6. Qe3 {[%emt 0:00:22] B53: Sicilian: 2...d6: Lines with Qxd4.} Nf6 {[%emt 0:00:37]} 7. h3 {[%emt 0:11:44]} e6 {[%emt 0:01:14]} (7... d5 $11) 8. c4 {[%emt 0:02:43] White is slightly better.} Be7 {[%emt 0:00:43]} 9. O-O {[%emt 0:02:05]} O-O {[%emt 0:00:11]} 10. Rd1 {[%emt 0:02:35]} Qc7 {[%emt 0:02:16]} 11. Nc3 {[%emt 0:03:08]} Ne5 {[%emt 0:03:02]} 12. b3 {[%emt 0:03:27] [#]} Ned7 $5 $146 {[%emt 0:11:56][%mdl 8] An interesting novelty.} ({Predecessor:} 12... b6 13. Ba3 Nfd7 14. Rd2 Nxf3+ 15. Bxf3 Rb8 16. Rad1 Nc5 17. Bb2 Nd7 18. Be2 Bb7 {1-0 (33) Perunovic,M (2576)-Kovacevic,A (2568) Tivat 2011}) 13. Ba3 {[%emt 0:05:49]} Re8 {[%emt 0:03:17]} 14. Rac1 {[%emt 0:35:24]} b6 {[%emt 0:04:21]} 15. Qd4 {[%emt 0:05:54][%cal Ra3d6]} Nc5 {[%emt 0:00:46]} 16. b4 {[%emt 0:00:34]} Ncd7 {[%emt 0:00:47]} 17. Bb2 {[%emt 0:03:35]} Bb7 {[%emt 0:00:36]} 18. a3 {[%emt 0:01:27]} Rac8 {[%emt 0:00:12]} 19. Nd2 {[%emt 0:04:43]} Qb8 {[%emt 0:00:43]} 20. Bf1 {[%emt 0:04:10]} Bd8 {[%emt 0:03:27]} 21. g3 {[%emt 0:03:32]} Bc7 {[%emt 0:01:16]} 22. Bg2 {[%emt 0:00:05]} Rcd8 {[%emt 0:00:43][%cal Od6d5]} 23. Nf1 {[%emt 0:01:13]} Ne5 {[%emt 0:00:54]} 24. Ne3 {[%emt 0:00:34]} h5 {[%emt 0:01:27][%cal Oh5h4]} 25. Kh1 {[%emt 0:02:47]} ({Better is} 25. Qd2 $14) 25... Ba8 {[%emt 0:01:33]} 26. Ba1 {[%emt 0:00:20]} (26. Qd2 $14) 26... b5 $15 {[%emt 0:02:07]} 27. cxb5 {[%emt 0:00:43]} axb5 {[%emt 0:00:05][%cal Oh5h4]} (27... Bb6 $5 28. Qd2 axb5 $11) 28. Qd2 {[%emt 0:01:08]} (28. Nxb5 $2 Bb6 29. Qxd6 Rxd6 30. Nxd6 {[#]} Ng6 $1 31. Bxf6 gxf6 32. Nxe8 Qxe8 $19) 28... Bb6 {[%emt 0:00:37][%cal Oh5h4]} 29. Qe2 {[%emt 0:00:30]} Bc6 {[%emt 0:00:47]} 30. Nc2 {[%emt 0:00:31]} (30. f4 $11 Ng6 31. a4) 30... h4 {[%emt 0:02:43]} 31. Nd4 {[%emt 0:02:21]} (31. gxh4 $15 Ng6 32. Ne3) 31... hxg3 $2 {[%emt 0:01:49]} ({Black should play} 31... Bxd4 $17 32. Rxd4 hxg3 33. fxg3 Qa7) 32. fxg3 {[%emt 0:00:17]} (32. Nxc6 $14 Nxc6 33. Nxb5) 32... Ba8 {[%emt 0:04:19]} (32... Bxd4 $17 33. Rxd4 Qa7) 33. Ndxb5 $11 {[%emt 0:00:59]} d5 $1 {[%emt 0:00:34]} 34. Na4 {[%emt 0:00:51]} Nxe4 {[%emt 0:16:49]} 35. Bxe4 {[%emt 0:00:36]} dxe4 {[%emt 0:03:22]} 36. Nxb6 {[%emt 0:00:35] Pair of Knights!} Nd3 {[%emt 0:01:46][%cal Be5d3,Bd3c1,Bc1e2,Be2g3][%mdl 32]} 37. Nxa8 {[%emt 0:00:24]} Qxg3 {[%emt 0:00:39]} 38. Rf1 {[%emt 0:00:23] Inhibits Nf2+.} Nxc1 {[%emt 0:05:53] The board is on fire.} 39. Qg2 {[%emt 0:00:44][%mdl 8192] This move loses the game for White.} ({Don't go for} 39. Rxc1 $2 Qxh3+ 40. Qh2 (40. Kg1 Rd5 $19) 40... Qf3+ 41. Qg2 Rd1+ 42. Rxd1 Qxd1+ 43. Qg1 Qh5+ 44. Qh2 Qxb5 $19) (39. Qh5 $15 Rd5 40. Qxf7+ Kh7 41. Qxg7+ (41. Qxe8 $2 Qxh3+ 42. Kg1 Rg5+ 43. Kf2 Qg3#) 41... Qxg7 42. Bxg7 Rxa8 43. Nc7) 39... Qxg2+ $19 {[%emt 0:00:38]} 40. Kxg2 {[%emt 0:00:01]} Rd2+ {[%emt 0:00:22]} 41. Kh1 {[%emt 0:00:11]} Ne2 {[%emt 0:01:02] [#] Threatens to win with ...Ng3+.} ({Worse is} 41... Rxa8 42. Rxc1 Rad8 43. Bc3 $15) 42. Nac7 {[%emt 0:00:02]} Ng3+ {[%emt 0:26:43]} 43. Kg1 Red8 {[%emt 0:00:00] Strongly threatening ...R8d3.} 44. Re1 {[%emt 0:01:26]} R8d3 {[%emt 0:00:00]} 45. Nc3 {[%emt 0:01:12] Against Ne2+} Rc2 {[%emt 0:00:00] ( -> ...Rdd2)} 46. b5 {[%emt 0:00:37]} Rdd2 {[%emt 0:00:00][%csl Gc2][%cal Rd2g2]} 47. Ne2 {[%emt 0:00:23]} Nxe2+ {[%emt 0:00:00]} 48. Kf2 {[%emt 0:00:14]} Nf4+ {[%emt 0:00:00]} 49. Kg3 {[%emt 0:00:10]} Nh5+ {[%emt 0:00:00]} (49... g5 $142 50. Rxe4 Rd3+ 51. Re3 Rxe3+ 52. Kg4 Rg2#) 50. Kh4 {[%emt 0:00:14] Black is clearly winning.} Rxc7 {[%emt 0:00:00]} 51. Kxh5 {[%emt 0:00:07]} Rc5+ {[%emt 0:00:00]} (51... Rg2 $142 52. Be5 Rc5 53. Rxe4 f6) 52. Kh4 {[%emt 0:00:10]} Rxb5 {[%emt 0:00:00] Weighted Error Value: White=0.91/Black=0.36} (52... Rg2 $142 53. Rxe4 g6) 0-1